[Event "SWE-ch Masters 2019"]
[Site "Eskilstuna"]
[Date "2019.07.08"]
[Round "3.8"]
[White "Adellian, Yashar"]
[Black "Zadruzny, Nicolaj"]
[Result "0-1"]
[ECO "C84"]
[WhiteElo "1995"]
[BlackElo "2280"]
[Annotator "NA"]
[PlyCount "28"]
[EventDate "2019.07.06"]
[EventType "swiss"]
[EventCountry "SWE"]
[SourceTitle "playchess.com"]
[Source "ChessBase"]
[SourceQuality "1"]
[TimeControl "40/5400+30:1800+30"]

1. e4 {[%emt 0:00:00]} e5 {[%emt 0:00:00]} 2. Nf3 {[%emt 0:00:10]} Nc6 {[%emt 0:00:00]} 3. Bb5 {[%emt 0:00:15]} a6 {[%emt 0:00:00]} 4. Ba4 {[%emt 0:00:12]} Nf6 {[%emt 0:00:03]} 5. d4 {[%emt 0:00:28]} exd4 {[%emt 0:02:03]} 6. O-O {[%emt 0:00:22]} Be7 {[%emt 0:05:44]} 7. Re1 {[%emt 0:00:34]} b5 {[%emt 0:07:15]} 8. e5 {[%emt 0:00:15]} Nxe5 {[%emt 0:01:22]} 9. Nxe5 {[%emt 0:10:38]} bxa4 {[%emt 0:00:17]} 10. Qxd4 {[%emt 0:00:26]} O-O {[%emt 0:01:51]} 11. Nc3 {[%emt 0:05:03]} Rb8 {[%emt 0:06:23]} 12. Nc6 {[%emt 0:08:40]} dxc6 {[%emt 0:00:19]} 13. Qxd8 {[%emt 0:02:27]} Bxd8 {[%emt 0:00:06]} 14. Nxa4 {[%emt 0:00:26]} Bf5 {[%emt 0:01:29]} 0-1

[Event "SWE-ch Masters 2019"]
[Site "Eskilstuna"]
[Date "2019.07.08"]
[Round "3.9"]
[White "Hellstrom, Magnus"]
[Black "Olsson, William"]
[Result "1-0"]
[ECO "B76"]
[WhiteElo "2061"]
[BlackElo "2113"]
[Annotator "NA"]
[PlyCount "45"]
[EventDate "2019.07.06"]
[EventType "swiss"]
[EventCountry "SWE"]
[SourceTitle "playchess.com"]
[Source "ChessBase"]
[SourceQuality "1"]
[TimeControl "40/5400+30:1800+30"]

1. e4 {[%emt 0:01:22]} c5 {[%emt 0:00:00]} 2. Nf3 {[%emt 0:00:24]} d6 {[%emt 0:00:00]} 3. d4 {[%emt 0:00:34]} cxd4 {[%emt 0:00:00]} 4. Nxd4 {[%emt 0:00:50]} Nf6 {[%emt 0:00:00]} 5. Nc3 {[%emt 0:00:12]} g6 {[%emt 0:00:00]} 6. Be3 {[%emt 0:01:39]} Bg7 {[%emt 0:00:00]} 7. f3 {[%emt 0:00:40]} O-O {[%emt 0:00:01]} 8. Qd2 {[%emt 0:00:28]} Nc6 {[%emt 0:00:04]} 9. g4 {[%emt 0:00:49]} Be6 {[%emt 0:06:05]} 10. O-O-O {[%emt 0:01:51]} Na5 {[%emt 0:06:42]} 11. h4 {[%emt 0:07:03]} Bc4 {[%emt 0:01:28]} 12. Bh3 {[%emt 0:03:42]} Ba6 {[%emt 0:15:23]} 13. b3 {[%emt 0:02:09]} Rc8 {[%emt 0:01:55]} 14. g5 {[%emt 0:04:59]} Nd7 {[%emt 0:06:50]} 15. h5 {[%emt 0:09:14]} Nc6 {[%emt 0:05:05]} 16. hxg6 {[%emt 0:08:20]} hxg6 {[%emt 0:00:06]} 17. Nd5 {[%emt 0:00:21]} Nce5 {[%emt 0:10:45]} 18. Kb1 {[%emt 0:19:34]} Rc5 {[%emt 0:03:51]} 19. Qh2 {[%emt 0:03:32]} Re8 {[%emt 0:00:40]} 20. Ne6 {[%emt 0:16:12]} fxe6 {[%emt 0:01:13]} 21. Bxe6+ {[%emt 0:00:10]} Nf7 {[%emt 0:00:14]} 22. Bd4 {[%emt 0:00:30]} Nf8 {[%emt 0:04:50]} 23. Qh8+ {[%emt 0:00:41]} 1-0

[Event "SWE-ch Masters 2019"]
[Site "Eskilstuna"]
[Date "2019.07.08"]
[Round "3.10"]
[White "Cramling Bellon, Anna"]
[Black "Emmoth, Alfons"]
[Result "1/2-1/2"]
[ECO "E38"]
[WhiteElo "2030"]
[BlackElo "2075"]
[Annotator "NA"]
[PlyCount "36"]
[EventDate "2019.07.06"]
[EventType "swiss"]
[EventCountry "SWE"]
[SourceTitle "playchess.com"]
[Source "ChessBase"]
[SourceQuality "1"]
[TimeControl "40/5400+30:1800+30"]

1. d4 {[%emt 0:00:00]} Nf6 {[%emt 0:00:00]} 2. c4 {[%emt 0:00:00]} e6 {[%emt 0:00:00]} 3. Nc3 {[%emt 0:00:03]} Bb4 {[%emt 0:00:00]} 4. Qc2 {[%emt 0:00:26]} c5 {[%emt 0:00:00]} 5. dxc5 {[%emt 0:00:10]} Bxc5 {[%emt 0:00:09]} 6. Nf3 {[%emt 0:02:32]} Qb6 {[%emt 0:01:20]} 7. e3 {[%emt 0:00:17]} Be7 {[%emt 0:01:06]} 8. Be2 {[%emt 0:05:35]} d6 {[%emt 0:00:24]} 9. O-O {[%emt 0:00:12]} O-O {[%emt 0:00:20]} 10. e4 {[%emt 0:01:54]} a6 {[%emt 0:03:12]} 11. h3 {[%emt 0:13:22]} Nbd7 {[%emt 0:05:36]} 12. Be3 {[%emt 0:03:13]} Qc7 {[%emt 0:00:16]} 13. Rac1 {[%emt 0:00:52]} b6 {[%emt 0:03:13]} 14. Nd4 {[%emt 0:18:26]} Bb7 {[%emt 0:03:57]} 15. f4 {[%emt 0:01:50]} Rac8 {[%emt 0:04:36]} 16. Qb1 {[%emt 0:06:56]} Qb8 {[%emt 0:06:40]} 17. b4 {[%emt 0:10:22]} Rfe8 {[%emt 0:18:12]} 18. Bd3 {[%emt 0:02:47]} Bf8 {[%emt 0:12:35]} 1/2-1/2

[Event "SWE-ch Masters 2019"]
[Site "Eskilstuna"]
[Date "2019.07.09"]
[Round "4.1"]
[White "Wahlund, Max"]
[Black "Olsson, Svante"]
[Result "1/2-1/2"]
[ECO "E84"]
[WhiteElo "2100"]
[BlackElo "2155"]
[Annotator "NA"]
[PlyCount "76"]
[EventDate "2019.07.06"]
[EventType "swiss"]
[EventCountry "SWE"]
[SourceTitle "playchess.com"]
[Source "ChessBase"]
[SourceQuality "1"]
[TimeControl "40/5400+30:1800+30"]

1. d4 {[%emt 0:00:00]} Nf6 {[%emt 0:00:00]} 2. c4 {[%emt 0:00:00]} g6 {[%emt 0:00:00]} 3. Nc3 {[%emt 0:00:00]} Bg7 {[%emt 0:00:00]} 4. e4 {[%emt 0:00:00]} d6 {[%emt 0:00:15]} 5. f3 {[%emt 0:00:00]} Nc6 {[%emt 0:00:27]} 6. Be3 {[%emt 0:00:00]} a6 {[%emt 0:00:40]} 7. Qd2 {[%emt 0:00:07]} Rb8 {[%emt 0:00:28]} 8. Nge2 {[%emt 0:05:14]} O-O {[%emt 0:00:26]} 9. Rc1 {[%emt 0:00:06]} Re8 {[%emt 0:00:29]} 10. Nd1 {[%emt 0:00:35]} e5 {[%emt 0:00:14]} 11. d5 {[%emt 0:00:42]} Nd4 {[%emt 0:00:07]} 12. Nxd4 {[%emt 0:01:42]} exd4 {[%emt 0:00:09]} 13. Bxd4 {[%emt 0:00:05]} c5 {[%emt 0:10:57]} 14. Be3 {[%emt 0:12:28]} b5 {[%emt 0:14:34]} 15. Be2 {[%emt 0:05:44]} Nd7 {[%emt 0:09:50]} 16. O-O {[%emt 0:00:53]} Ne5 {[%emt 0:00:08]} 17. b4 {[%emt 0:02:48]} cxb4 {[%emt 0:10:47]} 18. Qxb4 {[%emt 0:00:32]} f5 {[%emt 0:00:21]} 19. cxb5 {[%emt 0:02:38]} fxe4 {[%emt 0:00:15]} 20. fxe4 {[%emt 0:01:44]} Bg4 {[%emt 0:00:16]} 21. Bxg4 {[%emt 0:06:11]} Nxg4 {[%emt 0:00:03]} 22. Bf4 {[%emt 0:00:09]} Be5 {[%emt 0:09:58]} 23. Bxe5 {[%emt 0:12:28]} Nxe5 {[%emt 0:02:25]} 24. Qd4 {[%emt 0:02:58]} axb5 {[%emt 0:01:04]} 25. Ne3 {[%emt 0:01:42]} Qa5 {[%emt 0:00:30]} 26. Rc2 {[%emt 0:03:33]} Rf8 {[%emt 0:01:29]} 27. Rfc1 {[%emt 0:08:44]} Rf7 {[%emt 0:01:11]} 28. Rc8+ {[%emt 0:05:46]} Rxc8 {[%emt 0:00:25]} 29. Rxc8+ {[%emt 0:00:03]} Kg7 {[%emt 0:02:33]} 30. h3 {[%emt 0:00:22]} Qe1+ {[%emt 0:00:47]} 31. Kh2 {[%emt 0:00:13]} h5 {[%emt 0:00:07]} 32. Qc3 {[%emt 0:07:58]} Qf2 {[%emt 0:01:13]} 33. Kh1 {[%emt 0:04:43]} b4 {[%emt 0:05:51]} 34. Qd4 {[%emt 0:01:33]} Kh7 {[%emt 0:03:47]} 35. Qb6 {[%emt 0:04:32]} h4 {[%emt 0:06:04]} 36. Qd8 {[%emt 0:06:40]} Qe1+ {[%emt 0:01:26]} 37. Kh2 {[%emt 0:00:02]} Qg3+ {[%emt 0:03:24]} 38. Kh1 {[%emt 0:00:13]} Qe1+ {[%emt 0:00:17]} 1/2-1/2

[Event "SWE-ch Masters 2019"]
[Site "Eskilstuna"]
[Date "2019.07.09"]
[Round "4.2"]
[White "Landgren, Andreas"]
[Black "Olsson, Simon"]
[Result "1-0"]
[ECO "E33"]
[WhiteElo "2246"]
[BlackElo "2176"]
[Annotator "NA"]
[PlyCount "55"]
[EventDate "2019.07.06"]
[EventType "swiss"]
[EventCountry "SWE"]
[SourceTitle "playchess.com"]
[Source "ChessBase"]
[SourceQuality "1"]
[TimeControl "40/5400+30:1800+30"]

1. d4 {[%emt 0:00:00]} Nf6 {[%emt 0:00:00]} 2. c4 {[%emt 0:00:00]} Nc6 {[%emt 0:00:00]} 3. Nf3 {[%emt 0:00:00]} e6 {[%emt 0:00:00]} 4. Nc3 {[%emt 0:00:01]} Bb4 {[%emt 0:00:37]} 5. Qc2 {[%emt 0:00:10]} d6 {[%emt 0:01:39]} 6. Bd2 {[%emt 0:00:14]} O-O {[%emt 0:00:31]} 7. a3 {[%emt 0:00:07]} Bxc3 {[%emt 0:00:07]} 8. Bxc3 {[%emt 0:00:06]} Qe7 {[%emt 0:00:20]} 9. e4 {[%emt 0:00:09]} e5 {[%emt 0:01:19]} 10. d5 {[%emt 0:00:06]} Nb8 {[%emt 0:01:49]} 11. Be2 {[%emt 0:00:08]} Ne8 {[%emt 0:02:32]} 12. O-O {[%emt 0:06:11]} f5 {[%emt 0:00:38]} 13. c5 {[%emt 0:12:05]} fxe4 {[%emt 0:04:00]} 14. Qxe4 {[%emt 0:01:44]} Bf5 {[%emt 0:02:09]} 15. cxd6 {[%emt 0:10:52]} cxd6 {[%emt 0:00:40]} 16. Qe3 {[%emt 0:00:18]} Nd7 {[%emt 0:04:32]} 17. Nd4 {[%emt 0:32:26]} Nc7 {[%emt 0:00:15]} 18. Nxf5 {[%emt 0:02:36]} Rxf5 {[%emt 0:00:11]} 19. f4 {[%emt 0:07:52]} Qf7 {[%emt 0:04:47]} 20. fxe5 {[%emt 0:03:41]} Nxd5 {[%emt 0:02:12]} 21. Rxf5 {[%emt 0:01:35]} Qxf5 {[%emt 0:03:17]} 22. Bc4 {[%emt 0:02:35]} N7b6 {[%emt 0:00:55]} 23. Qd4 {[%emt 0:03:03]} Qxe5 {[%emt 0:12:03]} 24. Qg4 {[%emt 0:03:20]} Qe3+ {[%emt 0:01:30]} 25. Kh1 {[%emt 0:00:21]} Qe7 {[%emt 0:00:18]} 26. Rd1 {[%emt 0:00:34]} Qf7 {[%emt 0:17:26]} 27. Rxd5 {[%emt 0:01:32]} Nxd5 {[%emt 0:00:18]} 28. Bxd5 {[%emt 0:00:10]} 1-0

[Event "SWE-ch Masters 2019"]
[Site "Eskilstuna"]
[Date "2019.07.09"]
[Round "4.4"]
[White "Nikolic, Vladan"]
[Black "Tiger-Norqvist, Axel"]
[Result "1-0"]
[ECO "E71"]
[WhiteElo "2153"]
[BlackElo "2222"]
[Annotator "NA"]
[PlyCount "165"]
[EventDate "2019.07.06"]
[EventType "swiss"]
[EventCountry "SWE"]
[SourceTitle "playchess.com"]
[Source "ChessBase"]
[SourceQuality "1"]
[TimeControl "40/5400+30:1800+30"]

1. d4 {[%emt 0:00:00]} Nf6 {[%emt 0:00:00]} 2. c4 {[%emt 0:00:00]} g6 {[%emt 0:00:00]} 3. Nc3 {[%emt 0:00:00]} Bg7 {[%emt 0:00:00]} 4. e4 {[%emt 0:00:00]} O-O {[%emt 0:00:00]} 5. h3 {[%emt 0:00:45]} d6 {[%emt 0:00:00]} 6. Bg5 {[%emt 0:00:09]} a6 {[%emt 0:00:05]} 7. Qd2 {[%emt 0:08:36]} c5 {[%emt 0:06:19]} 8. d5 {[%emt 0:00:17]} Qa5 {[%emt 0:04:03]} 9. a4 {[%emt 0:04:07]} e6 {[%emt 0:23:58]} 10. Bd3 {[%emt 0:05:05]} exd5 {[%emt 0:00:24]} 11. exd5 {[%emt 0:00:29]} Nbd7 {[%emt 0:03:45]} 12. Nf3 {[%emt 0:01:27]} Re8+ {[%emt 0:01:31]} 13. Be3 {[%emt 0:01:14]} b5 {[%emt 0:03:47]} 14. cxb5 {[%emt 0:08:43]} c4 {[%emt 0:00:09]} 15. Bxc4 {[%emt 0:05:47]} Nb6 {[%emt 0:00:14]} 16. Bb3 {[%emt 0:13:58]} axb5 {[%emt 0:04:15]} 17. O-O {[%emt 0:10:56]} b4 {[%emt 0:02:58]} 18. Nb5 {[%emt 0:03:07]} Ne4 {[%emt 0:01:55]} 19. Qc1 {[%emt 0:02:45]} Bd7 {[%emt 0:08:26]} 20. Bxb6 {[%emt 0:04:15]} Qxb6 {[%emt 0:00:08]} 21. Qc7 {[%emt 0:00:17]} Qxc7 {[%emt 0:00:10]} 22. Nxc7 {[%emt 0:00:05]} Bxb2 {[%emt 0:00:12]} 23. Rab1 {[%emt 0:04:39]} Ba3 {[%emt 0:00:16]} 24. Rbe1 {[%emt 0:04:01]} Nc5 {[%emt 0:01:30]} 25. Rxe8+ {[%emt 0:00:57]} Rxe8 {[%emt 0:00:14]} 26. Nxe8 {[%emt 0:00:06]} Bxe8 {[%emt 0:00:12]} 27. a5 {[%emt 0:04:22]} Bb5 {[%emt 0:02:44]} 28. Rb1 {[%emt 0:00:43]} Bd3 {[%emt 0:10:41]} 29. Rd1 {[%emt 0:00:18]} Nxb3 {[%emt 0:02:42]} 30. Rxd3 {[%emt 0:00:34]} Nxa5 {[%emt 0:00:11]} 31. Nd4 {[%emt 0:02:07]} Nc4 {[%emt 0:07:27]} 32. Nc2 {[%emt 0:02:05]} Kf8 {[%emt 0:00:09]} 33. Rd4 {[%emt 0:02:47]} Nb6 {[%emt 0:00:19]} 34. Nxb4 {[%emt 0:00:18]} Bxb4 {[%emt 0:00:05]} 35. Rxb4 {[%emt 0:00:04]} Nxd5 {[%emt 0:00:06]} 36. Rd4 {[%emt 0:00:09]} Nc7 {[%emt 0:01:29]} 37. Rxd6 {[%emt 0:00:13]} Ke7 {[%emt 0:00:06]} 38. Rb6 {[%emt 0:00:17]} Ne6 {[%emt 0:00:05]} 39. g3 {[%emt 0:01:04]} h5 {[%emt 0:01:41]} 40. Rb4 {[%emt 0:02:30]} Kf6 {[%emt 0:03:58]} 41. Kg2 {[%emt 0:30:55]} Kf5 {[%emt 0:31:57]} 42. Ra4 {[%emt 0:02:29]} Kf6 {[%emt 0:00:27]} 43. h4 {[%emt 0:02:02]} Ng7 {[%emt 0:02:46]} 44. Kf3 {[%emt 0:00:39]} Ne6 {[%emt 0:00:21]} 45. Ra5 {[%emt 0:00:26]} Nd4+ {[%emt 0:00:29]} 46. Ke4 {[%emt 0:00:14]} Ne6 {[%emt 0:00:33]} 47. Ra6 {[%emt 0:01:53]} Ke7 {[%emt 0:00:38]} 48. Rb6 {[%emt 0:02:34]} Nc5+ {[%emt 0:02:47]} 49. Kd4 {[%emt 0:00:28]} Nd7 {[%emt 0:00:22]} 50. Ra6 {[%emt 0:00:34]} Nf6 {[%emt 0:00:46]} 51. f3 {[%emt 0:00:37]} Nd7 {[%emt 0:00:55]} 52. g4 {[%emt 0:02:29]} hxg4 {[%emt 0:00:08]} 53. fxg4 {[%emt 0:00:05]} Nf6 {[%emt 0:00:05]} 54. g5 {[%emt 0:00:09]} Nh5 {[%emt 0:00:07]} 55. Ke5 {[%emt 0:01:08]} Kf8 {[%emt 0:01:16]} 56. Ra3 {[%emt 0:00:46]} Ke7 {[%emt 0:00:22]} 57. Rf3 {[%emt 0:00:00]} Ng7 {[%emt 0:00:00]} 58. Rb3 {[%emt 0:00:00]} Nh5 {[%emt 0:00:00]} 59. Ra3 {[%emt 0:00:00]} Ng7 {[%emt 0:00:00]} 60. Ra8 {[%emt 0:00:00]} Nh5 {[%emt 0:00:00]} 61. Ra7+ {[%emt 0:00:00]} Kf8 {[%emt 0:00:00]} 62. Kd6 {[%emt 0:00:00]} Ng3 {[%emt 0:00:00]} 63. Ra8+ {[%emt 0:00:00]} Kg7 {[%emt 0:00:00]} 64. Ra4 {[%emt 0:00:00]} Nf5+ {[%emt 0:00:00]} 65. Ke5 {[%emt 0:00:00]} Ng3 {[%emt 0:00:00]} 66. Rf4 {[%emt 0:00:00]} Kf8 {[%emt 0:00:00]} 67. Rf3 {[%emt 0:00:00]} Nh5 {[%emt 0:00:00]} 68. Kd6 {[%emt 0:00:00]} Ke8 {[%emt 0:00:00]} 69. Kc7 {[%emt 0:00:00]} Ng7 {[%emt 0:00:00]} 70. Re3+ {[%emt 0:00:00]} Kf8 {[%emt 0:00:00]} 71. Kd7 {[%emt 0:00:00]} Nf5 {[%emt 0:00:00]} 72. Re4 {[%emt 0:00:00]} Kg7 {[%emt 0:00:00]} 73. Ra4 {[%emt 0:00:00]} Kf8 {[%emt 0:00:00]} 74. Re4 {[%emt 0:00:00]} Kg7 {[%emt 0:00:00]} 75. Rf4 {[%emt 0:00:00]} f6 {[%emt 0:00:00]} 76. Ke6 {[%emt 0:00:00]} fxg5 {[%emt 0:00:00]} 77. hxg5 {[%emt 0:00:00]} Kh7 {[%emt 0:00:00]} 78. Rxf5 {[%emt 0:00:00]} gxf5 {[%emt 0:00:00]} 79. Kf7 {[%emt 0:00:00]} f4 {[%emt 0:00:00]} 80. g6+ {[%emt 0:00:00]} Kh6 {[%emt 0:00:00]} 81. g7 {[%emt 0:00:00]} f3 {[%emt 0:00:00]} 82. g8=Q {[%emt 0:00:00]} f2 {[%emt 0:00:00]} 83. Qg6# {[%emt 0:00:00]} 1-0

[Event "SWE-ch Masters 2019"]
[Site "Eskilstuna"]
[Date "2019.07.09"]
[Round "4.5"]
[White "Eriksson, Jorgen"]
[Black "Crevatin, Leo"]
[Result "1/2-1/2"]
[ECO "D00"]
[WhiteElo "2211"]
[BlackElo "2146"]
[Annotator "NA"]
[PlyCount "48"]
[EventDate "2019.07.06"]
[EventType "swiss"]
[EventCountry "SWE"]
[SourceTitle "playchess.com"]
[Source "ChessBase"]
[SourceQuality "1"]
[TimeControl "40/5400+30:1800+30"]

1. d4 {[%emt 0:00:03]} d5 {[%emt 0:00:00]} 2. Bf4 {[%emt 0:00:13]} c5 {[%emt 0:00:00]} 3. e3 {[%emt 0:00:08]} Nc6 {[%emt 0:00:00]} 4. c3 {[%emt 0:02:37]} Nf6 {[%emt 0:00:46]} 5. Bd3 {[%emt 0:05:09]} Bg4 {[%emt 0:02:31]} 6. f3 {[%emt 0:04:08]} Bh5 {[%emt 0:00:26]} 7. Ne2 {[%emt 0:03:07]} e6 {[%emt 0:01:31]} 8. O-O {[%emt 0:02:08]} Be7 {[%emt 0:02:18]} 9. a3 {[%emt 0:03:09]} a5 {[%emt 0:02:10]} 10. a4 {[%emt 0:04:35]} O-O {[%emt 0:03:22]} 11. Na3 {[%emt 0:00:21]} Qb6 {[%emt 0:07:27]} 12. Nb5 {[%emt 0:02:09]} Rac8 {[%emt 0:04:34]} 13. Kh1 {[%emt 0:02:34]} Rfd8 {[%emt 0:02:13]} 14. Bg3 {[%emt 0:01:47]} Bg6 {[%emt 0:04:12]} 15. Nf4 {[%emt 0:00:58]} Na7 {[%emt 0:04:14]} 16. Nxa7 {[%emt 0:06:06]} Qxa7 {[%emt 0:00:05]} 17. Nxg6 {[%emt 0:20:25]} hxg6 {[%emt 0:00:10]} 18. Qe2 {[%emt 0:04:15]} Bd6 {[%emt 0:05:24]} 19. Bxd6 {[%emt 0:06:46]} Rxd6 {[%emt 0:00:01]} 20. dxc5 {[%emt 0:03:15]} Qxc5 {[%emt 0:00:47]} 21. Bb5 {[%emt 0:01:01]} e5 {[%emt 0:09:02]} 22. Rad1 {[%emt 0:03:11]} Rcd8 {[%emt 0:02:13]} 23. Rd2 {[%emt 0:05:52]} b6 {[%emt 0:10:23]} 24. Rfd1 {[%emt 0:01:16]} Qc7 {[%emt 0:06:53]} 1/2-1/2

[Event "SWE-ch Masters 2019"]
[Site "Eskilstuna"]
[Date "2019.07.09"]
[Round "4.6"]
[White "Zadruzny, Nicolaj"]
[Black "Hellstrom, Magnus"]
[Result "1-0"]
[ECO "B45"]
[WhiteElo "2280"]
[BlackElo "2061"]
[Annotator "NA"]
[PlyCount "51"]
[EventDate "2019.07.06"]
[EventType "swiss"]
[EventCountry "SWE"]
[SourceTitle "playchess.com"]
[Source "ChessBase"]
[SourceQuality "1"]
[TimeControl "40/5400+30:1800+30"]

1. e4 {[%emt 0:00:00]} c5 {[%emt 0:00:00]} 2. Nf3 {[%emt 0:00:00]} Nc6 {[%emt 0:00:07]} 3. Nc3 {[%emt 0:00:12]} e6 {[%emt 0:00:48]} 4. d4 {[%emt 0:00:16]} cxd4 {[%emt 0:00:11]} 5. Nxd4 {[%emt 0:00:05]} Nf6 {[%emt 0:01:36]} 6. Nxc6 {[%emt 0:00:11]} bxc6 {[%emt 0:00:19]} 7. e5 {[%emt 0:00:07]} Nd5 {[%emt 0:00:22]} 8. Ne4 {[%emt 0:00:06]} Qc7 {[%emt 0:01:03]} 9. f4 {[%emt 0:00:08]} f5 {[%emt 0:06:19]} 10. exf6 {[%emt 0:00:17]} gxf6 {[%emt 0:00:17]} 11. Bd3 {[%emt 0:04:19]} Be7 {[%emt 0:08:23]} 12. O-O {[%emt 0:05:03]} h5 {[%emt 0:10:36]} 13. c4 {[%emt 0:17:47]} Qb6+ {[%emt 0:03:33]} 14. Kh1 {[%emt 0:00:32]} Nb4 {[%emt 0:15:26]} 15. Be2 {[%emt 0:05:30]} c5 {[%emt 0:01:56]} 16. Bxh5+ {[%emt 0:03:57]} Kd8 {[%emt 0:03:09]} 17. Bf3 {[%emt 0:04:09]} Rb8 {[%emt 0:04:18]} 18. Be3 {[%emt 0:12:27]} Nc6 {[%emt 0:08:00]} 19. Qd3 {[%emt 0:05:00]} Ba6 {[%emt 0:09:02]} 20. Rfd1 {[%emt 0:02:32]} d5 {[%emt 0:03:03]} 21. Nc3 {[%emt 0:03:41]} Kc8 {[%emt 0:07:41]} 22. Bxd5 {[%emt 0:00:20]} exd5 {[%emt 0:02:00]} 23. Nxd5 {[%emt 0:00:31]} Qd8 {[%emt 0:01:05]} 24. Qf5+ {[%emt 0:00:15]} Kb7 {[%emt 0:00:17]} 25. Nxe7 {[%emt 0:00:12]} Nxe7 {[%emt 0:00:08]} 26. Qe4+ {[%emt 0:00:16]} 1-0

[Event "SWE-ch Masters 2019"]
[Site "Eskilstuna"]
[Date "2019.07.09"]
[Round "4.7"]
[White "Lind, Jan-Olov"]
[Black "Cramling Bellon, Anna"]
[Result "1-0"]
[ECO "A04"]
[WhiteElo "2155"]
[BlackElo "2030"]
[Annotator "NA"]
[PlyCount "107"]
[EventDate "2019.07.06"]
[EventType "swiss"]
[EventCountry "SWE"]
[SourceTitle "playchess.com"]
[Source "ChessBase"]
[SourceQuality "1"]
[TimeControl "40/5400+30:1800+30"]

1. e4 {[%emt 0:00:00]} c5 {[%emt 0:00:21]} 2. Nf3 {[%emt 0:00:00]} Nc6 {[%emt 0:00:10]} 3. d3 {[%emt 0:01:20]} g6 {[%emt 0:04:15]} 4. g3 {[%emt 0:00:14]} Bg7 {[%emt 0:00:05]} 5. Bg2 {[%emt 0:00:06]} e5 {[%emt 0:00:06]} 6. O-O {[%emt 0:00:46]} Nge7 {[%emt 0:00:20]} 7. c3 {[%emt 0:02:26]} O-O {[%emt 0:00:19]} 8. a3 {[%emt 0:01:27]} d6 {[%emt 0:00:25]} 9. b4 {[%emt 0:00:33]} a6 {[%emt 0:00:18]} 10. Ra2 {[%emt 0:12:03]} Be6 {[%emt 0:27:28]} 11. Rb2 {[%emt 0:01:08]} b5 {[%emt 0:08:33]} 12. Be3 {[%emt 0:07:12]} cxb4 {[%emt 0:02:33]} 13. axb4 {[%emt 0:00:41]} h6 {[%emt 0:01:08]} 14. d4 {[%emt 0:14:03]} exd4 {[%emt 0:04:15]} 15. Nxd4 {[%emt 0:03:36]} Bc4 {[%emt 0:04:10]} 16. Re1 {[%emt 0:02:12]} a5 {[%emt 0:16:21]} 17. Qd2 {[%emt 0:28:37]} axb4 {[%emt 0:09:45]} 18. cxb4 {[%emt 0:00:52]} Nxd4 {[%emt 0:10:46]} 19. Bxd4 {[%emt 0:00:13]} Bxd4 {[%emt 0:00:02]} 20. Qxd4 {[%emt 0:00:36]} Nc6 {[%emt 0:00:05]} 21. Qc3 {[%emt 0:02:27]} Ne5 {[%emt 0:00:30]} 22. Rd2 {[%emt 0:02:03]} Qb6 {[%emt 0:01:19]} 23. Red1 {[%emt 0:01:02]} Rfd8 {[%emt 0:02:10]} 24. h3 {[%emt 0:00:53]} Rac8 {[%emt 0:01:25]} 25. Qb2 {[%emt 0:04:58]} Be6 {[%emt 0:01:00]} 26. Rd4 {[%emt 0:01:07]} Nc4 {[%emt 0:02:29]} 27. Qe2 {[%emt 0:00:35]} Rd7 {[%emt 0:02:06]} 28. Kh2 {[%emt 0:00:24]} Ra7 {[%emt 0:00:56]} 29. Nc3 {[%emt 0:05:52]} Ra3 {[%emt 0:00:02]} 30. Nd5 {[%emt 0:00:37]} Bxd5 {[%emt 0:00:16]} 31. exd5 {[%emt 0:00:36]} Rb3 {[%emt 0:00:45]} 32. Rh4 {[%emt 0:02:11]} Kg7 {[%emt 0:00:56]} 33. Qe1 {[%emt 0:01:16]} Ne5 {[%emt 0:00:32]} 34. Qd2 {[%emt 0:02:16]} g5 {[%emt 0:00:15]} 35. Rd4 {[%emt 0:00:34]} Rbc3 {[%emt 0:00:41]} 36. Qe2 {[%emt 0:02:00]} Rc2 {[%emt 0:00:33]} 37. R4d2 {[%emt 0:00:36]} R2c4 {[%emt 0:00:25]} 38. f4 {[%emt 0:00:28]} gxf4 {[%emt 0:00:25]} 39. gxf4 {[%emt 0:00:19]} Rxf4 {[%emt 0:00:08]} 40. Be4 {[%emt 0:00:11]} Rf6 {[%emt 0:01:04]} 41. Rg1+ {[%emt 0:01:43]} Kf8 {[%emt 0:03:32]} 42. Qe1 {[%emt 0:03:18]} Rc4 {[%emt 0:15:10]} 43. Kh1 {[%emt 0:11:16]} Rxb4 {[%emt 0:02:46]} 44. Rdg2 {[%emt 0:05:43]} Qd4 {[%emt 0:06:34]} 45. Rg8+ {[%emt 0:00:24]} Ke7 {[%emt 0:00:01]} 46. Bg2 {[%emt 0:00:26]} Rf4 {[%emt 0:02:58]} 47. Qg3 {[%emt 0:03:28]} Nd3 {[%emt 0:01:42]} 48. Rb8 {[%emt 0:02:03]} Nf2+ {[%emt 0:01:18]} 49. Kh2 {[%emt 0:00:03]} Rf5 {[%emt 0:00:34]} 50. Rb7+ {[%emt 0:03:01]} Kf6 {[%emt 0:00:07]} 51. Qxd6+ {[%emt 0:00:18]} Kg7 {[%emt 0:00:32]} 52. Be4+ {[%emt 0:00:50]} Rg5 {[%emt 0:00:29]} 53. Rxg5+ hxg5 {[%emt 0:00:02]} 54. Qg6+ {[%emt 0:00:35]} 1-0

[Event "SWE-ch Masters 2019"]
[Site "Eskilstuna"]
[Date "2019.07.09"]
[Round "4.8"]
[White "Emmoth, Alfons"]
[Black "Adellian, Yashar"]
[Result "1/2-1/2"]
[ECO "A88"]
[WhiteElo "2075"]
[BlackElo "1995"]
[Annotator "NA"]
[PlyCount "60"]
[EventDate "2019.07.06"]
[EventType "swiss"]
[EventCountry "SWE"]
[SourceTitle "playchess.com"]
[Source "ChessBase"]
[SourceQuality "1"]
[TimeControl "40/5400+30:1800+30"]

1. d4 {[%emt 0:00:00]} e6 {[%emt 0:00:00]} 2. c4 {[%emt 0:00:00]} f5 {[%emt 0:00:00]} 3. g3 {[%emt 0:00:00]} Nf6 {[%emt 0:00:00]} 4. Bg2 {[%emt 0:00:00]} g6 {[%emt 0:00:00]} 5. Nf3 {[%emt 0:00:14]} Bg7 {[%emt 0:00:02]} 6. O-O {[%emt 0:00:18]} d6 {[%emt 0:00:06]} 7. Nc3 {[%emt 0:00:53]} O-O {[%emt 0:00:08]} 8. Qc2 {[%emt 0:00:33]} Nc6 {[%emt 0:00:17]} 9. d5 {[%emt 0:01:18]} Nb4 {[%emt 0:00:37]} 10. Qb3 {[%emt 0:08:41]} Na6 {[%emt 0:01:00]} 11. dxe6 {[%emt 0:09:48]} Nc5 {[%emt 0:01:37]} 12. Qc2 {[%emt 0:02:25]} c6 {[%emt 0:01:21]} 13. b3 {[%emt 0:06:35]} Bxe6 {[%emt 0:04:48]} 14. Ng5 {[%emt 0:04:03]} Qe7 {[%emt 0:10:29]} 15. Nxe6 {[%emt 0:03:21]} Qxe6 {[%emt 0:03:45]} 16. Bb2 {[%emt 0:02:40]} Rad8 {[%emt 0:10:05]} 17. Rfd1 {[%emt 0:06:16]} Nh5 {[%emt 0:18:05]} 18. e3 {[%emt 0:11:12]} Nf6 {[%emt 0:03:21]} 19. Ne2 {[%emt 0:06:33]} Qe7 {[%emt 0:09:05]} 20. Rac1 {[%emt 0:05:38]} Nce4 {[%emt 0:03:49]} 21. h3 {[%emt 0:15:38]} d5 {[%emt 0:09:17]} 22. Nc3 {[%emt 0:04:29]} Nxc3 {[%emt 0:02:02]} 23. Bxc3 {[%emt 0:00:17]} dxc4 {[%emt 0:00:31]} 24. Bxf6 {[%emt 0:01:03]} Rxf6 {[%emt 0:04:23]} 25. Qxc4+ {[%emt 0:02:18]} Kh8 {[%emt 0:03:15]} 26. Bf3 {[%emt 0:00:48]} Rfd6 {[%emt 0:00:39]} 27. Qc2 {[%emt 0:00:21]} Qe5 {[%emt 0:00:52]} 28. Rxd6 {[%emt 0:00:35]} Rxd6 {[%emt 0:00:24]} 29. Rd1 {[%emt 0:00:06]} Rxd1+ {[%emt 0:01:55]} 30. Qxd1 {[%emt 0:01:39]} Qa1 {[%emt 0:00:11]} 1/2-1/2